bitfinex-derivatives/quotes_ETHF0:USTF0_20250212
["timestamp","ask_amount","ask_price","bid_price","bid_amount"]
[1739366193784,0.75579,2646.1,2646.0,7.81496242]
[1739366193979,3.2078,2646.8,2646.0,7.81496242]
[1739366194191,3.2078,2647.9,2646.7,3.2078]
[1739366194492,0.75548,2647.2,2647.1,3.2078]
[1739366194695,0.75568,2646.5,2646.4,2.44891]
[1739366194990,0.75576,2646.2,2646.1,3.2078]
[1739366195388,0.75585,2645.9,2645.8,7.81496242]
[1739366195785,0.75582,2646.1,2645.8,7.81496242]
[1739366196187,3.2078,2646.5,2645.8,3.2078]
[1739366196393,0.75585,2645.9,2645.8,3.2078]
[1739366197190,0.75585,2645.9,2645.8,7.81496242]
[1739366197493,1.1722,2646.7,2645.8,7.81496242]
[1739366197494,0.75574,2646.3,2645.8,7.81496242]
[1739366197792,0.5978,2646.7,2646.2,7.81496242]
[1739366198091,0.75574,2646.3,2646.2,7.81496242]
[1739366198494,3.2078,2647.2,2646.2,7.81496242]
[1739366198683,0.73562,2646.7,2646.6,3.2078]
[1739366199890,0.75574,2646.3,2646.2,7.81496242]
[1739366200092,0.75582,2646.0,2645.9,3.2078]
[1739366200583,0.75591,2645.7,2645.6,3.21346733]
[1739366201585,0.75602,2645.3,2645.2,3.2078]
[1739366201990,0.75611,2645.0,2644.9,3.2078]
[1739366202494,0.75619,2644.7,2644.6,7.81496242]
[1739366202694,3.2078,2645.7,2644.6,7.81496242]
[1739366202882,0.75608,2645.1,2645.0,7.81496242]
[1739366203687,0.75608,2645.1,2645.0,9.72396242]
[1739366203992,0.75608,2645.1,2645.0,7.81496242]
[1739366204296,0.00555496,2645.2,2645.0,13.81496242]
[1739366204596,1.88934,2646.4,2645.0,7.81496242]
[1739366204796,0.75599,2645.5,2645.1,40.8]
[1739366204998,0.75599,2645.5,2645.4,7.81496242]
[1739366205294,0.75599,2645.5,2645.4,9.73196242]
[1739366207387,0.75599,2645.5,2645.4,50.53196242]
[1739366208094,0.75599,2645.5,2645.4,48.61496242]
[1739366208294,0.75599,2645.5,2645.4,44.0078]
[1739366208496,0.75605,2645.2,2645.1,5.1278]
[1739366208695,1.88992,2645.5,2645.0,4.60716242]
[1739366208897,0.75608,2645.1,2645.0,4.60716242]
[1739366209393,1.88992,2645.5,2644.8,3.2078]
[1739366209394,0.75614,2644.9,2644.8,3.2078]
[1739366211888,0.75614,2644.9,2644.8,44.0078]
[1739366212404,4.32658,2646.5,2644.8,44.0078]
[1739366212405,1.88937,2646.3,2644.9,0.75612]
[1739366212590,0.75588,2645.8,2645.7,7.81496242]
[1739366212898,0.75588,2645.8,2645.7,7.80878477]
[1739366213493,0.75588,2645.8,2645.7,48.60878477]
[1739366214990,0.75588,2645.8,2645.7,44.0078]
[1739366215292,0.75588,2645.8,2645.7,3.2078]
[1739366215494,3.2078,2646.3,2645.4,1.917]
[1739366215796,0.75596,2645.5,2645.4,40.8]
[1739366217296,3.7559,2646.5,2645.4,40.8]
[1739366217596,3.7559,2646.5,2645.7,7.81496242]
[1739366217597,0.75588,2645.8,2645.7,7.81496242]
[1739366217989,1.88935,2646.3,2645.7,7.81496242]
[1739366218193,0.75576,2646.2,2646.1,7.81496242]
[1739366218695,3.2078,2647.1,2646.1,7.81496242]
[1739366218897,0.75576,2646.2,2646.1,7.81496242]
[1739366219193,0.75576,2646.2,2646.1,9.72696242]
[1739366219496,5.09702,2646.5,2646.1,6.51916242]
[1739366219890,0.75576,2646.2,2646.1,4.60716242]
[1739366220204,0.75582,2646.0,2645.9,0.00566733]
[1739366220593,0.75582,2646.0,2645.9,0.56070866]
[1739366220793,0.75582,2646.0,2645.9,8.66e-06]
[1739366220794,3.96362,2646.0,2645.9,8.66e-06]
[1739366221295,0.75602,2645.3,2645.2,44.0078]
[1739366222496,0.00566733,2645.5,2645.2,44.0078]
[1739366222699,0.76163733,2645.5,2645.4,4.60716242]
[1739366222899,0.76163733,2645.5,2645.4,6.52316242]
[1739366225200,0.76163733,2645.5,2645.4,4.60716242]
[1739366227096,0.75595,2645.6,2645.4,4.60716242]
[1739366227402,0.75595,2645.6,2645.5,3.2078]
[1739366229694,3.7889,2646.2,2645.5,3.2078]
[1739366229695,0.75593,2645.7,2645.5,5.1148]
[1739366229908,0.40048601,2645.7,2645.6,4.60716242]
[1739366230209,0.7559,2645.8,2645.6,4.60716242]
[1739366230407,0.7559,2645.8,2645.7,45.40716242]
[1739366231304,3.2078,2647.5,2645.7,70.14542916]
[1739366231606,3.2078,2647.5,2646.9,4.60716242]
[1739366231607,0.75554,2647.0,2646.9,4.60716242]
[1739366231804,0.5932,2647.9,2646.9,6.52216242]
[1739366232013,2.48093,2648.6,2647.8,4.60716242]
[1739366232303,0.75809924,2648.0,2647.9,40.8]
[1739366232698,0.75809924,2648.0,2647.9,42.717]
[1739366233000,0.75809924,2648.0,2647.9,40.8]
[1739366233201,0.75534,2647.7,2647.6,7.33e-06]
[1739366233403,3.96314,2647.7,2647.6,7.33e-06]
[1739366234606,10.56174,2647.7,2647.6,7.33e-06]
[1739366235709,4.56174,2647.7,2647.6,7.33e-06]
[1739366236806,1.35394,2647.7,2647.6,7.33e-06]
[1739366237710,10.56174,2647.7,2647.6,7.33e-06]
[1739366239012,1.88918,2646.6,2646.0,14.78744071]
[1739366239211,0.75579,2646.1,2646.0,14.78744071]
[1739366240522,0.75582,2646.0,2645.9,3.2078]
[1739366240809,0.75581,2646.1,2645.9,3.2078]
[1739366241016,0.00566733,2646.3,2646.0,6.53416242]
[1739366241216,0.00566733,2646.3,2646.2,3.2078]
[1739366241711,0.76140733,2646.3,2646.2,44.0078]
[1739366242115,0.76140733,2646.3,2646.2,40.8]
[1739366243916,0.00566733,2646.3,2646.2,40.8]
[1739366244217,0.76140733,2646.3,2646.2,42.724]
[1739366244712,0.00566733,2646.3,2646.2,42.724]
[1739366244929,0.76140733,2646.3,2646.2,42.724]
[1739366246220,0.76140733,2646.3,2646.2,42.72]
[1739366246412,0.76140733,2646.3,2646.2,40.8]
[1739366246810,0.00566733,2646.3,2645.8,1.92466733]
[1739366247016,0.75585,2645.9,2645.8,1.92466733]
[1739366247210,0.75585,2645.9,2645.8,0.00566733]
[1739366247519,3.96365,2645.9,2645.8,7.33e-06]
[1739366247712,0.75585,2645.9,2645.8,7.33e-06]
[1739366254629,9.96365,2645.9,2645.8,7.33e-06]
[1739366255921,3.96365,2645.9,2645.8,7.33e-06]
[1739366256323,9.96365,2645.9,2645.8,7.33e-06]
[1739366257628,3.96365,2645.9,2645.8,7.33e-06]
[1739366258426,0.75585,2645.9,2645.8,7.33e-06]
[1739366259824,0.00566733,2646.3,2645.8,7.33e-06]
[1739366259825,0.76141733,2646.3,2646.1,0.75577]
[1739366260027,1.88899,2646.8,2646.2,5.7068]
[1739366260332,0.75571,2646.4,2646.3,4.60716242]
[1739366260629,0.75571,2646.4,2646.3,45.40716242]
[1739366261232,0.00566,2646.6,2646.3,45.40716242]
[1739366261526,0.00566,2646.6,2646.5,3.2078]
[1739366261728,0.76131,2646.6,2646.5,3.2078]
[1739366264927,0.00566,2646.6,2646.3,45.40716242]
[1739366265235,0.75571,2646.4,2646.3,4.60716242]
[1739366265732,0.75574,2646.3,2645.9,5.16466242]
[1739366265925,0.75574,2646.3,2645.8,3.20780733]
[1739366265926,5.09718,2646.3,2645.8,3.20780733]
[1739366266127,3.96365,2645.9,2645.8,7.33e-06]
[1739366266521,0.75585,2645.9,2645.8,7.33e-06]
[1739366267131,3.96365,2645.9,2645.8,7.33e-06]
[1739366267728,0.75585,2645.9,2645.8,7.33e-06]
[1739366267935,0.75585,2645.9,2645.8,4.60716975]
[1739366268131,0.75583,2646.0,2645.8,4.60716975]
[1739366268328,0.75583,2646.0,2645.9,3.2078]
[1739366268533,0.7558,2646.1,2645.9,3.2078]
[1739366268844,1.89485,2646.6,2646.0,4.60716242]
[1739366268845,0.75578,2646.2,2646.0,4.60716242]
[1739366269326,0.00566,2646.6,2646.0,4.60716242]
[1739366269529,0.75577,2646.2,2646.0,4.60716242]
[1739366269732,0.75577,2646.2,2646.1,3.2078]
[1739366270039,0.75579,2646.1,2646.0,4.60716242]
[1739366270433,0.75579,2646.1,2646.0,45.40716242]
[1739366270934,0.75579,2646.1,2646.0,4.60716242]
[1739366271132,0.75585,2645.9,2645.8,3.20780733]
[1739366271636,0.75585,2645.9,2645.8,7.33e-06]
[1739366277842,1.32355,2645.9,2645.8,7.33e-06]
[1739366279940,0.75585,2645.9,2645.8,7.33e-06]
[1739366282051,6.75585,2645.9,2645.8,7.33e-06]
[1739366282246,0.75585,2645.9,2645.8,7.33e-06]
[1739366284546,0.75578,2646.2,2645.8,8.65986733]
[1739366284850,0.75575,2646.3,2646.1,7.81496242]
[1739366285045,0.75575,2646.3,2646.2,5.17246242]
[1739366285749,1.88893,2646.9,2646.2,45.97246242]
[1739366285944,0.75568,2646.5,2646.4,3.2078]
[1739366287358,0.75574,2646.3,2646.2,7.07346242]
[1739366287551,5.09665,2647.0,2646.2,7.07346242]
[1739366287751,0.75571,2646.4,2646.3,3.2078]
[1739366288655,5.09665,2647.0,2646.3,3.2078]
[1739366288656,0.7557,2646.5,2646.3,3.2078]
[1739366288850,0.76133,2646.6,2646.3,3.2078]
[1739366289043,0.75568,2646.5,2646.3,3.2078]
[1739366289252,0.75571,2646.4,2646.3,3.2078]
[1739366291056,0.75582,2646.0,2645.9,1.908]
[1739366293056,0.75585,2645.9,2645.8,4.60716975]
[1739366294556,3.78206,2646.6,2645.8,4.60716975]
[1739366294764,0.75568,2646.5,2646.2,4.60716242]
[1739366295059,0.75574,2646.3,2646.2,6.51516242]
[1739366295256,0.00566,2646.6,2646.2,6.51516242]
[1739366295459,0.75571,2646.4,2646.3,0.5491]
[1739366295856,0.00566,2646.6,2646.3,0.5491]
[1739366296161,0.76131,2646.6,2646.5,3.2078]
[1739366299462,0.76131,2646.6,2646.5,44.0078]
[1739366300555,0.76131,2646.6,2646.5,3.2078]
[1739366300964,0.76131,2646.6,2646.5,44.0078]
[1739366301665,0.76131,2646.6,2646.5,47.92818737]
[1739366304967,1.88886,2647.0,2646.5,47.92818737]
[1739366305169,0.75554,2647.0,2646.9,3.92038737]
[1739366305464,0.75554,2647.0,2646.9,9.01018737]
[1739366306068,2.43473,2647.3,2646.9,9.01018737]
[1739366306069,0.5461,2647.3,2646.9,9.01018737]
[1739366306376,1.88854,2647.5,2647.2,3.92038737]
[1739366306669,0.75545,2647.3,2647.2,3.92038737]
[1739366306968,0.75545,2647.3,2647.2,7.12818737]
[1739366308269,3.03147,2647.9,2647.2,7.12818737]
[1739366308571,1.89848,2647.9,2647.8,3.92038737]
[1739366309566,0.75528,2647.9,2647.8,3.92038737]
[1739366312166,3.92038737,2649.5,2647.8,3.92038737]
[1739366312167,3.2078,2648.9,2647.8,9.92038737]
[1739366312368,0.75499,2648.9,2648.8,3.92038737]
[1739366312571,0.75492,2649.2,2648.8,52.60438737]
[1739366312771,0.18442268,2649.3,2649.1,7.12818737]
[1739366312977,0.18442268,2649.3,2649.2,3.92038737]
[1739366312978,0.7549,2649.3,2649.2,3.92038737]
[1739366313473,0.57045732,2649.3,2649.2,5.80538737]
[1739366313870,0.57045732,2649.3,2649.2,3.92038737]
[1739366314369,0.75497,2649.0,2648.9,3.9260547]
[1739366317069,6.75497,2649.0,2648.9,7.33e-06]
[1739366317268,0.75522,2648.1,2648.0,3.92038737]
[1739366317469,0.75522,2648.1,2647.5,2.4308]
[1739366317470,1.88785,2648.4,2647.7,3.92038737]
[1739366317673,5.09579,2648.2,2647.6,3.2078]
[1739366317972,0.75534,2647.7,2647.6,3.2078]
[1739366318570,0.00566733,2647.9,2647.6,3.2078]
[1739366318880,0.76094733,2647.9,2647.8,3.92038737]
[1739366319779,0.75534,2647.7,2647.6,3.2078]
[1739366320480,0.75539,2647.5,2647.4,0.00566733]
[1739366321274,1.88853,2647.5,2646.7,3.2078]
[1739366321584,0.75559,2646.8,2646.7,3.2078]
[1739366323681,0.75562,2646.7,2646.6,40.8]
[1739366323987,0.6039,2646.7,2646.5,0.00566733]
[1739366324187,0.75565,2646.6,2646.5,0.00566733]
[1739366326988,0.75565,2646.6,2646.5,7.33e-06]
[1739366327175,6.75565,2646.6,2646.5,7.33e-06]
[1739366327381,11.83645,2646.6,2646.5,7.33e-06]
[1739366327986,9.96345,2646.6,2646.5,7.33e-06]
[1739366328285,3.96345,2646.6,2646.5,7.33e-06]
[1739366333496,0.75565,2646.6,2646.5,7.33e-06]
[1739366333698,3.2078,2648.1,2646.5,6.00000733]
[1739366333992,3.2078,2648.1,2647.6,4.60091569]
[1739366334300,3.2078,2648.1,2647.6,6.48691569]
[1739366334798,3.2078,2648.1,2647.6,9.69471569]
[1739366334799,0.75534,2647.7,2647.6,9.69471569]
[1739366334999,0.75533,2647.8,2647.6,9.69471569]
[1739366335202,3.2078,2648.4,2647.6,9.69471569]
[1739366335399,0.76095733,2647.9,2647.6,9.69471569]
[1739366335595,0.00566733,2647.9,2647.6,9.69471569]
[1739366337198,0.76095733,2647.9,2647.6,9.69471569]
[1739366337996,0.76095733,2647.9,2647.7,1.88]
[1739366338196,0.00566733,2647.9,2647.7,1.88]
[1739366338495,0.75531,2647.8,2647.7,1.88]
[1739366338694,0.75534,2647.7,2647.6,7.80871569]
[1739366338895,0.75534,2647.7,2647.6,5.0868]
[1739366340204,0.75534,2647.7,2647.6,9.68771569]
[1739366341595,0.75534,2647.7,2647.6,9.00440483]
[1739366342099,0.00566733,2647.9,2647.6,9.75976483]
[1739366342399,0.00566733,2647.9,2647.6,9.00440483]
[1739366342593,3.7732,2648.7,2647.9,0.75527]
[1739366342796,0.75508,2648.6,2648.5,3.91760483]
[1739366343398,0.75508,2648.6,2648.5,7.12540483]
[1739366343895,0.00566733,2648.8,2648.5,7.12540483]
[1739366344091,0.75508,2648.7,2648.5,7.12540483]
[1739366344898,0.75508,2648.6,2648.5,7.12540483]
[1739366345105,0.75507,2648.7,2648.5,7.12540483]
[1739366345507,0.00566733,2648.8,2648.5,7.12540483]
[1739366345703,0.76070733,2648.8,2648.5,7.12540483]
[1739366345899,0.76070733,2648.8,2648.6,0.5572]
[1739366346103,0.76070733,2648.8,2648.7,1.879]
[1739366346404,3.2078,2650.9,2648.8,0.19061056]
[1739366346602,1.88624,2650.7,2650.0,3.91760483]
[1739366346803,0.75465,2650.1,2650.0,5.81260483]
[1739366346998,0.75465,2650.1,2650.0,46.61260483]
[1739366347500,0.00566,2650.3,2650.0,46.61260483]
[1739366347701,0.00566,2650.3,2650.0,45.9028]
[1739366348100,0.76026,2650.3,2650.0,45.9028]
[1739366348302,0.75465,2650.1,2650.0,44.0078]
[1739366348601,0.75465,2650.1,2650.0,40.8]
[1739366348804,0.75468,2650.0,2649.9,1.934]
[1739366348996,3.2078,2650.4,2649.8,0.00566733]
[1739366349201,0.75471,2649.9,2649.8,0.00566733]
[1739366350705,0.75471,2649.9,2649.8,7.33e-06]
[1739366350910,0.75494,2649.1,2649.0,3.2078]
[1739366351417,0.75494,2649.1,2649.0,7.80002806]
[1739366351602,0.75491,2649.2,2649.0,7.80002806]
[1739366351806,3.2078,2649.7,2649.0,7.80002806]
[1739366352001,0.75489,2649.3,2649.0,7.80002806]
[1739366352209,0.76052733,2649.4,2649.1,3.2078]
[1739366352505,0.76053733,2649.4,2649.2,1.932]
[1739366353302,0.00566733,2649.4,2649.2,1.932]
[1739366353702,0.75488,2649.3,2649.2,1.932]
[1739366354412,0.75491,2649.2,2649.1,5.1368]
[1739366355409,0.00566733,2649.4,2649.1,5.1368]
[1739366355807,0.75489,2649.3,2649.1,5.1368]
[1739366356410,0.00566733,2649.4,2649.1,3.2078]
[1739366356411,0.75491,2649.2,2649.1,3.2078]
[1739366356909,0.75491,2649.2,2649.1,44.0078]
[1739366357299,0.00566733,2649.4,2648.8,0.00566733]
[1739366357505,0.75499,2648.9,2648.8,0.00566733]
[1739366357701,0.75499,2648.9,2648.8,40.80566733]
[1739366357901,3.8036,2649.1,2648.4,3.2078]
[1739366358107,0.75511,2648.5,2648.4,3.2078]
[1739366358409,0.75511,2648.5,2647.8,4.59222806]
[1739366358410,0.75519,2648.2,2648.1,3.2078]
[1739366360511,3.2078,2648.8,2648.1,3.2078]
[1739366360512,0.78861,2649.0,2648.1,3.2078]
[1739366360711,0.75511,2648.5,2648.4,3.2078]
[1739366361012,0.75511,2648.5,2648.4,3.20488729]
[1739366364611,0.75511,2648.5,2648.4,3.78098729]
[1739366364808,0.75511,2648.5,2648.4,44.58098729]
[1739366365008,0.00566733,2649.4,2648.5,1.88778]
[1739366365218,0.76051733,2649.4,2649.3,7.80002806]
[1739366365419,1.05199,2649.9,2649.3,7.80002806]
[1739366365420,0.75484,2649.5,2649.3,9.72802806]
[1739366365718,1.05199,2649.9,2649.3,9.72802806]
[1739366365917,1.05199,2649.9,2649.8,3.2078]
[1739366365918,1.8067,2649.9,2649.8,3.2078]
[1739366367820,1.8067,2649.9,2649.8,5.1308]
[1739366368110,1.05199,2649.9,2649.8,5.1308]
[1739366368914,1.05199,2649.9,2649.8,45.9308]
[1739366369617,1.05199,2649.9,2649.8,49.84075275]
[1739366370011,1.8067,2649.9,2649.8,49.84075275]
[1739366370321,1.8067,2649.9,2649.8,3.2078]
[1739366371915,1.8067,2649.9,2649.8,7.11775275]
[1739366373016,0.75477,2649.7,2649.6,0.00566733]
[1739366373714,0.75477,2649.7,2649.6,7.33e-06]
[1739366373910,1.88692,2649.7,2648.6,7.72285275]
[1739366374113,0.75496,2649.0,2648.9,7.11775275]
[1739366374618,0.75495,2649.1,2648.9,7.11775275]
[1739366374814,0.75495,2649.1,2649.0,3.90995275]
[1739366376813,1.88712,2649.5,2648.7,0.00566733]
[1739366376814,0.75502,2648.8,2648.7,0.00566733]
[1739366377321,0.75502,2648.8,2648.7,3.91562008]
[1739366377912,0.75502,2648.8,2648.7,0.00566733]
[1739366380015,0.75502,2648.8,2648.7,7.33e-06]
[1739366381220,6.75502,2648.8,2648.7,7.33e-06]
[1739366381821,0.75502,2648.8,2648.7,7.33e-06]
[1739366382117,6.75502,2648.8,2648.7,7.33e-06]
[1739366383823,0.75502,2648.8,2648.7,7.33e-06]
[1739366388333,6.75502,2648.8,2648.7,7.33e-06]
[1739366389532,0.75502,2648.8,2648.7,7.33e-06]
[1739366390626,6.75502,2648.8,2648.7,7.33e-06]
[1739366391324,6.0,2648.8,2648.0,3.2078]
[1739366391526,9.02175275,2649.0,2647.8,3.90995275]
[1739366391527,3.2078,2648.5,2647.8,3.90995275]
[1739366391725,0.75528,2647.9,2647.8,3.90995275]
[1739366392128,3.2078,2648.2,2647.6,3.2078]
[1739366392324,0.75534,2647.7,2647.6,3.2078]
[1739366392530,0.75534,2647.7,2647.6,3.21346733]
[1739366399537,0.75528,2647.9,2647.8,3.90995275]
[1739366401238,0.75528,2647.9,2647.8,5.79795275]
[1739366401941,0.76085733,2648.2,2648.1,3.90995275]
[1739366402232,0.76085733,2648.2,2648.1,7.11775275]
[1739366402439,0.00566733,2648.2,2648.1,7.11775275]
[1739366402738,1.88763,2648.7,2648.1,7.11775275]
[1739366403037,0.75505,2648.7,2648.6,3.90995275]
[1739366403641,1.05199,2649.9,2648.6,9.90995275]
[1739366403840,0.44956019,2649.4,2649.3,3.2078]
[1739366404135,1.05199,2649.9,2649.3,3.2078]
[1739366404136,1.05199,2649.9,2649.3,9.2078]
[1739366404440,0.75477,2649.7,2649.6,3.2078]
[1739366404836,0.75476,2649.8,2649.6,3.2078]
[1739366405137,0.75476,2649.8,2649.7,1.889]
[1739366406138,1.05199,2649.9,2649.7,5.79895275]
[1739366406344,1.80671,2649.9,2649.7,5.79895275]
[1739366406641,1.05199,2649.9,2649.7,5.79895275]
[1739366406844,1.80671,2649.9,2649.7,6.24985275]
[1739366407341,1.8067,2649.9,2649.7,6.81855275]
[1739366407541,1.05199,2649.9,2649.7,6.81855275]
[1739366407743,1.80671,2649.9,2649.7,6.81855275]
[1739366407943,0.75474,2649.8,2649.7,4.92955275]
[1739366408245,0.75474,2649.8,2649.7,6.81155275]
[1739366409239,1.05199,2649.9,2649.7,6.81155275]
[1739366409743,1.8067,2649.9,2649.7,6.81155275]
[1739366409940,1.05199,2649.9,2649.7,6.81155275]
[1739366410141,0.75474,2649.8,2649.7,6.81155275]
[1739366410344,1.80672,2649.9,2649.7,6.81155275]
[1739366410847,0.75474,2649.8,2649.7,6.81155275]
[1739366411247,0.75474,2649.8,2649.7,4.47865275]
[1739366411459,1.05199,2649.9,2649.6,3.2078]
[1739366411752,1.05199,2649.9,2649.3,3.2078]
[1739366411753,0.75485,2649.4,2649.3,3.2078]
[1739366411941,3.2078,2649.5,2649.1,4.51105275]
[1739366412141,0.75491,2649.2,2649.1,3.90995275]
[1739366413043,0.75475,2649.8,2649.1,9.90995275]
[1739366413243,0.75475,2649.8,2649.7,7.11775275]
[1739366413446,0.75475,2649.8,2649.7,8.99575275]
[1739366413642,0.75475,2649.8,2649.2,0.9964]
[1739366413643,3.2078,2649.6,2647.9,3.2078]
[1739366413847,3.90995275,2649.4,2648.8,3.31137729]
[1739366414049,3.96279,2648.9,2648.8,3.31137729]
[1739366414551,0.75499,2648.9,2648.8,3.31137729]
[1739366414945,0.75505,2648.7,2648.6,0.55176733]
[1739366415345,0.75505,2648.7,2648.6,3.86314462]
[1739366415748,2.035,2649.6,2648.6,3.86314462]
[1739366415749,4.25979,2649.9,2648.6,10.46172008]
[1739366415953,4.25979,2649.9,2649.2,7.22133004]
[1739366415954,1.05199,2649.9,2649.2,7.22133004]
[1739366416150,0.75474,2649.8,2649.7,3.31137729]
[1739366416454,0.75499,2648.9,2648.8,3.2078]
[1739366416655,0.75502,2648.8,2648.7,2.043]
[1739366417054,0.75502,2648.8,2648.7,4.40934729]
[1739366418153,0.75502,2648.8,2648.7,2.36634729]
[1739366418459,0.75505,2648.7,2648.6,0.00566733]
[1739366418660,0.75505,2648.7,2648.6,2.37201462]
[1739366423255,0.75505,2648.7,2648.6,6.28196737]
[1739366423560,0.75505,2648.7,2648.6,9.48976737]
[1739366423755,1.88702,2649.6,2648.6,7.12342008]
[1739366423946,4.25979,2649.9,2649.2,3.90995275]
[1739366424151,0.75482,2649.5,2649.3,2.027]
[1739366424457,0.75479,2649.7,2649.4,3.2078]
[1739366424756,1.05199,2649.9,2649.4,3.2078]
[1739366424757,1.05199,2649.9,2649.5,3.90995275]
[1739366424957,0.75474,2649.8,2649.7,3.2078]
[1739366425757,0.75474,2649.8,2649.7,44.0078]
[1739366427158,0.75474,2649.8,2649.7,46.0268]
[1739366428258,0.75474,2649.8,2649.7,5.2268]
[1739366428761,0.75474,2649.8,2649.7,46.0268]
[1739366430362,1.80671,2649.9,2649.7,46.0268]
[1739366430557,1.05199,2649.9,2649.8,3.90995275]
[1739366431064,1.8067,2649.9,2649.8,3.90995275]
[1739366431257,1.05199,2649.9,2649.8,3.90995275]
[1739366431464,1.8067,2649.9,2649.8,3.90995275]
[1739366432557,0.75474,2649.8,2649.7,3.2078]
[1739366432852,0.75474,2649.8,2649.7,5.2068]
[1739366434261,1.05199,2649.9,2649.6,1.993]
[1739366434461,0.75477,2649.7,2649.6,1.993]
[1739366439362,1.05199,2649.9,2649.4,3.2078]
[1739366439561,0.75482,2649.5,2649.4,3.2078]
[1739366439961,0.75482,2649.5,2649.4,5.1868]
[1739366441867,0.75494,2649.1,2649.0,0.6045]
[1739366442071,0.75502,2648.8,2648.7,5.96841591]
[1739366442363,1.88706,2649.5,2648.7,5.96841591]
[1739366442568,0.75498,2649.0,2648.9,7.11775275]
[1739366442756,1.64009,2649.9,2648.9,7.11775275]
[1739366442958,0.75485,2649.4,2649.3,7.11775275]
[1739366443158,0.75485,2649.4,2649.3,9.09775275]
[1739366443562,0.75485,2649.4,2649.3,49.89775275]
[1739366444770,0.75485,2649.4,2649.3,45.9878]
[1739366445368,0.75484,2649.5,2649.3,45.9878]
[1739366445667,0.75485,2649.4,2649.3,45.9878]
[1739366446070,1.64009,2649.9,2649.3,45.9878]
[1739366446371,0.75477,2649.7,2649.6,3.2078]
[1739366448270,1.64009,2649.9,2649.6,3.2078]
[1739366448271,0.75476,2649.8,2649.6,3.2078]
[1739366448472,0.75477,2649.7,2649.6,3.2078]
[1739366450269,0.75477,2649.7,2649.6,7.11775275]
[1739366451964,1.05199,2649.9,2649.6,7.11775275]
[1739366452469,0.75477,2649.7,2649.6,7.11775275]
[1739366453065,0.75477,2649.7,2649.6,7.68050113]
[1739366453266,0.75477,2649.7,2649.6,7.11775275]
[1739366453465,0.75477,2649.7,2649.6,3.2078]
[1739366456485,0.75477,2649.7,2649.6,5.1468]
[1739366457680,0.75477,2649.7,2649.6,5.1468]
[1739366458478,0.75477,2649.7,2649.6,5.1408]
[1739366458780,0.75485,2649.4,2649.3,47.91775275]
[1739366458972,0.75485,2649.4,2649.3,50.41330055]
[1739366459167,0.75485,2649.4,2649.3,48.48130055]
[1739366459378,0.75485,2649.4,2649.3,50.41130055]
[1739366460566,0.75485,2649.4,2649.3,49.84775275]
[1739366461767,0.75485,2649.4,2649.3,44.0078]
[1739366461970,0.75485,2649.4,2649.3,3.2078]
[1739366462774,0.75485,2649.4,2649.3,7.11775275]
[1739366463283,0.5868,2649.8,2649.3,7.11775275]
[1739366463475,0.75477,2649.7,2649.6,3.2078]
[1739366463671,0.75477,2649.7,2649.6,6.56965351]
[1739366464981,0.5868,2649.8,2649.3,44.16185351]
[1739366465170,0.75485,2649.4,2649.3,44.16185351]
[1739366465974,0.75485,2649.4,2649.2,1.921]
[1739366466175,0.75488,2649.3,2649.2,1.921]
[1739366468587,0.75491,2649.2,2649.1,40.8]
[1739366468783,0.75491,2649.2,2649.1,42.717]
[1739366468977,0.75491,2649.2,2649.1,45.9248]
[1739366469681,0.75491,2649.2,2649.1,40.8]
[1739366470481,0.75491,2649.2,2649.1,44.0078]
[1739366471573,1.88706,2649.6,2649.1,45.15822143]
[1739366471772,1.88706,2649.6,2649.5,3.36185351]
[1739366471773,0.75479,2649.6,2649.5,3.36185351]
[1739366473073,0.5868,2649.8,2649.5,3.36185351]
[1739366473278,0.75479,2649.6,2649.5,3.36185351]
[1739366474171,0.35962337,2649.9,2649.5,3.36185351]
[1739366474373,1.11433337,2649.9,2649.8,3.36185351]
[1739366474779,1.11433337,2649.9,2649.8,44.16185351]
[1739366476380,1.88642,2650.4,2649.8,44.16185351]
[1739366476381,0.7749307,2650.7,2649.8,54.27842702]
[1739366476587,0.75448,2650.7,2650.6,3.36185351]
[1739366476776,0.75448,2650.7,2650.6,5.27485351]
[1739366478185,0.75448,2650.7,2650.6,5.46256088]
[1739366479384,0.00566733,2650.9,2650.4,3.21346733]
[1739366479582,0.75454,2650.5,2650.4,0.00566733]
[1739366480192,0.75454,2650.5,2650.4,7.33e-06]
[1739366480386,7.30344,2650.5,2650.4,7.33e-06]
[1739366484391,1.30344,2650.5,2650.4,7.33e-06]
[1739366487389,10.66529351,2650.5,2650.4,7.33e-06]
[1739366493496,6.54729351,2650.5,2650.4,7.33e-06]
[1739366493999,0.75454,2650.5,2650.4,7.33e-06]
[1739366502495,4.68849351,2650.5,2650.4,7.33e-06]
[1739366502797,10.68849351,2650.5,2650.4,7.33e-06]
[1739366502999,12.56649351,2650.5,2650.4,7.33e-06]
[1739366503401,13.13799351,2650.5,2650.4,7.33e-06]
[1739366503901,13.13599351,2650.5,2650.4,7.33e-06]
[1739366504098,6.56449351,2650.5,2650.4,7.33e-06]
[1739366504997,12.56449351,2650.5,2650.4,7.33e-06]
[1739366505702,6.56449351,2650.5,2650.4,7.33e-06]
[1739366505899,12.56449351,2650.5,2650.4,7.33e-06]
[1739366506303,3.36185351,2650.2,2649.3,1.1865]
[1739366506604,0.75485,2649.4,2649.3,1.1865]
[1739366508601,0.75485,2649.4,2649.3,0.6002]
[1739366508803,6.56965351,2649.6,2649.1,0.00566733]
[1739366509010,3.96271,2649.2,2649.1,0.00566733]
[1739366510110,3.96271,2649.2,2649.1,7.33e-06]
[1739366510916,4.55641,2649.2,2649.1,7.33e-06]
[1739366511214,10.55641,2649.2,2649.1,7.33e-06]
[1739366512920,4.55641,2649.2,2649.1,7.33e-06]
[1739366513319,3.96271,2649.2,2649.1,7.33e-06]
[1739366514609,9.96271,2649.2,2649.1,7.33e-06]
[1739366516014,3.96271,2649.2,2649.1,7.33e-06]
[1739366516920,5.83371,2649.2,2649.1,7.33e-06]
[1739366517613,3.96271,2649.2,2649.1,7.33e-06]
[1739366519020,0.75491,2649.2,2649.1,7.33e-06]
[1739366519216,0.75491,2649.2,2649.1,3.36186084]
[1739366520225,0.75491,2649.2,2649.1,3.94996084]